[Event "*** SCC Grand Prix: Titled Tuesday Blitz"]
[Site "Chess.com"]
[Date "2020.09.08"]
[Round "10"]
[White "jefferyx"]
[Black "bocah_sakit"]
[Result "1-0"]
[WhiteElo "2929"]
[BlackElo "2691"]
[TimeControl "180+1"]
[EndTime "11:56:51 PDT"]
[Termination "jefferyx won by checkmate"]

1. d4 {[%clk 0:03:00.9]} 1... Nf6 {[%clk 0:02:59.8]} 2. Nf3 {[%clk 0:03:01.3]}
2... g6 {[%clk 0:03:00.7]} 3. Nc3 {[%clk 0:03:01.7]} 3... Bg7 {[%clk 0:03:01.6]}
4. e4 {[%clk 0:03:01.8]} 4... d6 {[%clk 0:03:02]} 5. Be3 {[%clk 0:03:01.8]} 5...
c6 {[%clk 0:03:01.4]} 6. Qd2 {[%clk 0:03:02]} 6... Nbd7 {[%clk 0:02:56.9]} 7.
Bh6 {[%clk 0:03:00.7]} 7... O-O {[%clk 0:02:53.2]} 8. h4 {[%clk 0:03:00.8]} 8...
e5 {[%clk 0:02:52.1]} 9. O-O-O {[%clk 0:02:59]} 9... Bxh6 {[%clk 0:02:29]} 10.
Qxh6 {[%clk 0:02:58.7]} 10... Ng4 {[%clk 0:02:29.4]} 11. Qd2 {[%clk 0:02:58.8]}
11... h5 {[%clk 0:02:25.9]} 12. Ng5 {[%clk 0:02:54.9]} 12... exd4 {[%clk
0:02:18.8]} 13. Qxd4 {[%clk 0:02:55.8]} 13... Qf6 {[%clk 0:02:19.1]} 14. Nh3
{[%clk 0:02:55.8]} 14... Qxh4 {[%clk 0:01:41.5]} 15. Qxd6 {[%clk 0:02:49.7]}
15... Qf6 {[%clk 0:01:40.6]} 16. Be2 {[%clk 0:02:13.4]} 16... Qxd6 {[%clk
0:01:32.1]} 17. Rxd6 {[%clk 0:02:14.3]} 17... Nb6 {[%clk 0:01:32.6]} 18. f3
{[%clk 0:02:07]} 18... Ne3 {[%clk 0:01:22.5]} 19. Nf4 {[%clk 0:02:07.3]} 19...
Nec4 {[%clk 0:01:21.2]} 20. Rd4 {[%clk 0:01:53.5]} 20... Ne5 {[%clk 0:01:19.4]}
21. Nd1 {[%clk 0:01:54]} 21... Bd7 {[%clk 0:00:54.9]} 22. Ne3 {[%clk 0:01:54.2]}
22... Rae8 {[%clk 0:00:43.3]} 23. Rhd1 {[%clk 0:01:54.4]} 23... Bc8 {[%clk
0:00:43.3]} 24. Rd6 {[%clk 0:01:53.1]} 24... h4 {[%clk 0:00:33.4]} 25. Rh1
{[%clk 0:01:51.8]} 25... g5 {[%clk 0:00:29.4]} 26. Nh5 {[%clk 0:01:04.5]} 26...
Re6 {[%clk 0:00:24.3]} 27. Rdd1 {[%clk 0:01:05]} 27... Rh6 {[%clk 0:00:17.9]}
28. f4 {[%clk 0:01:03.7]} 28... gxf4 {[%clk 0:00:13.4]} 29. Nxf4 {[%clk
0:01:04.6]} 29... Kg7 {[%clk 0:00:09.6]} 30. Nh5+ {[%clk 0:01:03.2]} 30... Kg6
{[%clk 0:00:06.4]} 31. Rxh4 {[%clk 0:01:03.6]} 31... Kg5 {[%clk 0:00:06.7]} 32.
g3 {[%clk 0:00:58.1]} 32... Rfh8 {[%clk 0:00:06.7]} 33. Rdh1 {[%clk 0:00:49.1]}
33... Be6 {[%clk 0:00:06.7]} 34. b3 {[%clk 0:00:44.2]} 34... Nbd7 {[%clk
0:00:06.7]} 35. Kd2 {[%clk 0:00:31.9]} 35... f6 {[%clk 0:00:06.7]} 36. Nf4
{[%clk 0:00:30.8]} 36... Nc5 {[%clk 0:00:04]} 37. Bh5 {[%clk 0:00:08.6]} 37...
Nxe4+ {[%clk 0:00:03.2]} 38. Ke1 {[%clk 0:00:09.3]} 38... Nc5 {[%clk 0:00:02.6]}
39. b4 {[%clk 0:00:08.8]} 39... Bd5 {[%clk 0:00:01.8]} 40. Nh3# {[%clk
0:00:08.4]} 1-0

[Event "*** SCC Grand Prix: Titled Tuesday Blitz"]
[Site "Chess.com"]
[Date "2020.09.08"]
[Round "10"]
[White "jhonnyuribe"]
[Black "exoticprincess"]
[Result "1-0"]
[WhiteElo "2570"]
[BlackElo "2878"]
[TimeControl "180+1"]
[EndTime "11:56:52 PDT"]
[Termination "jhonnyuribe won on time"]

1. d4 {[%clk 0:03:00.9]} 1... d5 {[%clk 0:02:48.7]} 2. Nf3 {[%clk 0:03:01.3]}
2... c6 {[%clk 0:02:48.3]} 3. e3 {[%clk 0:03:01.7]} 3... Nf6 {[%clk 0:02:48.4]}
4. Bd3 {[%clk 0:02:55.3]} 4... Bg4 {[%clk 0:02:47.4]} 5. Nbd2 {[%clk 0:02:51.7]}
5... e6 {[%clk 0:02:47.2]} 6. O-O {[%clk 0:02:51.1]} 6... Bd6 {[%clk 0:02:46.9]}
7. e4 {[%clk 0:02:48.8]} 7... dxe4 {[%clk 0:02:45.9]} 8. Nxe4 {[%clk 0:02:49.4]}
8... Nxe4 {[%clk 0:02:45.9]} 9. Bxe4 {[%clk 0:02:50]} 9... Nd7 {[%clk
0:02:45.9]} 10. c3 {[%clk 0:02:47.9]} 10... Bh5 {[%clk 0:02:42.7]} 11. Re1
{[%clk 0:02:45.6]} 11... O-O {[%clk 0:02:38.9]} 12. Bc2 {[%clk 0:02:42.9]} 12...
Bg6 {[%clk 0:02:36.7]} 13. Bg5 {[%clk 0:02:41.1]} 13... Qc7 {[%clk 0:02:35.1]}
14. h3 {[%clk 0:02:38.8]} 14... Rfe8 {[%clk 0:02:33.5]} 15. Qe2 {[%clk
0:02:37.5]} 15... a5 {[%clk 0:02:32.4]} 16. Rad1 {[%clk 0:02:36.3]} 16... a4
{[%clk 0:02:31.1]} 17. a3 {[%clk 0:02:36.2]} 17... b5 {[%clk 0:02:26.9]} 18.
Bxg6 {[%clk 0:02:32.3]} 18... hxg6 {[%clk 0:02:26]} 19. Qe4 {[%clk 0:02:27.2]}
19... Nb6 {[%clk 0:02:14.3]} 20. Re2 {[%clk 0:02:25.9]} 20... Nc4 {[%clk
0:02:13.7]} 21. Rde1 {[%clk 0:02:25.2]} 21... Qd7 {[%clk 0:02:08.5]} 22. Qh4
{[%clk 0:02:24.2]} 22... f6 {[%clk 0:02:00.1]} 23. Bc1 {[%clk 0:02:22.6]} 23...
Kf7 {[%clk 0:01:58.1]} 24. Qg4 {[%clk 0:02:17.5]} 24... Rad8 {[%clk 0:01:45.3]}
25. h4 {[%clk 0:02:17.1]} 25... e5 {[%clk 0:01:35.3]} 26. Qxd7+ {[%clk
0:02:14.3]} 26... Rxd7 {[%clk 0:01:36.2]} 27. dxe5 {[%clk 0:02:11.2]} 27... Bxe5
{[%clk 0:01:36.1]} 28. Nd2 {[%clk 0:01:56.3]} 28... Nxd2 {[%clk 0:01:30.5]} 29.
Bxd2 {[%clk 0:01:53.8]} 29... Red8 {[%clk 0:01:21.1]} 30. Be3 {[%clk 0:01:51.9]}
30... Rd1 {[%clk 0:01:18.7]} 31. Kf1 {[%clk 0:01:49.8]} 31... Rxe1+ {[%clk
0:01:03.7]} 32. Kxe1 {[%clk 0:01:47.8]} 32... Rd7 {[%clk 0:00:59.1]} 33. Bc5
{[%clk 0:01:41.1]} 33... Rd5 {[%clk 0:00:54.4]} 34. Be3 {[%clk 0:01:37.7]} 34...
Ke6 {[%clk 0:00:53.5]} 35. Rc2 {[%clk 0:01:34.2]} 35... Rd7 {[%clk 0:00:48.2]}
36. Ke2 {[%clk 0:01:34]} 36... f5 {[%clk 0:00:45.9]} 37. c4 {[%clk 0:01:31.1]}
37... Bf6 {[%clk 0:00:31.4]} 38. g3 {[%clk 0:01:27.9]} 38... Rb7 {[%clk
0:00:30.8]} 39. cxb5 {[%clk 0:01:22.6]} 39... Rxb5 {[%clk 0:00:30]} 40. Rxc6+
{[%clk 0:01:20.2]} 40... Kd5 {[%clk 0:00:29.5]} 41. Ra6 {[%clk 0:01:17.1]} 41...
Rxb2+ {[%clk 0:00:25]} 42. Kf3 {[%clk 0:01:17.5]} 42... Rb3 {[%clk 0:00:19.1]}
43. Rxa4 {[%clk 0:01:16.9]} 43... Be5 {[%clk 0:00:17.9]} 44. Ra5+ {[%clk
0:01:15.1]} 44... Ke6 {[%clk 0:00:17.4]} 45. Ra6+ {[%clk 0:01:12.7]} 45... Kf7
{[%clk 0:00:17.3]} 46. a4 {[%clk 0:01:10.5]} 46... Ra3 {[%clk 0:00:17.4]} 47.
Ke2 {[%clk 0:01:08.4]} 47... Bf6 {[%clk 0:00:12.4]} 48. Bc5 {[%clk 0:01:08.3]}
48... Ra2+ {[%clk 0:00:11.4]} 49. Kd3 {[%clk 0:01:08.9]} 49... g5 {[%clk
0:00:11.3]} 50. h5 {[%clk 0:01:05.5]} 50... g4 {[%clk 0:00:10.8]} 51. Be3 {[%clk
0:01:02.5]} 51... Be5 {[%clk 0:00:09.8]} 52. Kc4 {[%clk 0:01:01.9]} 52... Ra3
{[%clk 0:00:09.6]} 53. Kd5 {[%clk 0:01:01]} 53... Bxg3 {[%clk 0:00:08.2]} 54.
Bc5 {[%clk 0:00:57.9]} 54... Rd3+ {[%clk 0:00:04.6]} 55. Kc4 {[%clk 0:00:57.9]}
55... Bxf2 {[%clk 0:00:04.9]} 56. Kxd3 {[%clk 0:00:55.1]} 56... Bxc5 {[%clk
0:00:03.8]} 57. Ra5 {[%clk 0:00:55.4]} 1-0

[Event "*** SCC Grand Prix: Titled Tuesday Blitz"]
[Site "Chess.com"]
[Date "2020.09.08"]
[Round "10"]
[White "1stSecond"]
[Black "1977Ivan"]
[Result "0-1"]
[WhiteElo "2782"]
[BlackElo "2650"]
[TimeControl "180+1"]
[EndTime "11:56:52 PDT"]
[Termination "1977Ivan won on time"]

1. e4 {[%clk 0:03:00.9]} 1... c5 {[%clk 0:02:59.8]} 2. Nf3 {[%clk 0:03:01]} 2...
e6 {[%clk 0:03:00.3]} 3. d4 {[%clk 0:03:00.4]} 3... cxd4 {[%clk 0:03:01.2]} 4.
Nxd4 {[%clk 0:03:01.3]} 4... Nc6 {[%clk 0:03:01.4]} 5. Nc3 {[%clk 0:03:01.1]}
5... Qc7 {[%clk 0:03:01.7]} 6. Be3 {[%clk 0:03:01]} 6... a6 {[%clk 0:03:02.1]}
7. Qd2 {[%clk 0:02:55]} 7... Nf6 {[%clk 0:03:00.9]} 8. f3 {[%clk 0:02:51.9]}
8... Bb4 {[%clk 0:03:01.2]} 9. O-O-O {[%clk 0:02:49.6]} 9... O-O {[%clk
0:03:00.4]} 10. Nb3 {[%clk 0:02:44.8]} 10... d5 {[%clk 0:02:34.4]} 11. a3 {[%clk
0:02:43.4]} 11... Bxc3 {[%clk 0:02:30.6]} 12. Qxc3 {[%clk 0:02:44.3]} 12... dxe4
{[%clk 0:02:31.1]} 13. fxe4 {[%clk 0:02:33.3]} 13... Nxe4 {[%clk 0:02:30.2]} 14.
Qc4 {[%clk 0:02:27.2]} 14... f5 {[%clk 0:02:29.6]} 15. Be2 {[%clk 0:02:18.3]}
15... b5 {[%clk 0:02:21.2]} 16. Qd3 {[%clk 0:02:17.8]} 16... Rd8 {[%clk
0:02:17.4]} 17. Nd4 {[%clk 0:02:05]} 17... Nxd4 {[%clk 0:02:13.8]} 18. Bxd4
{[%clk 0:02:05.9]} 18... Nf2 {[%clk 0:02:06]} 19. Bxf2 {[%clk 0:01:51.3]} 19...
Rxd3 {[%clk 0:02:05]} 20. Rxd3 {[%clk 0:01:52.2]} 20... Bb7 {[%clk 0:02:02.3]}
21. Rhd1 {[%clk 0:01:52.6]} 21... Be4 {[%clk 0:01:57.8]} 22. Rc3 {[%clk
0:01:50.2]} 22... Qxh2 {[%clk 0:01:55.4]} 23. Bg3 {[%clk 0:01:21.4]} 23... Qh6+
{[%clk 0:01:46.5]} 24. Kb1 {[%clk 0:01:21.3]} 24... f4 {[%clk 0:01:46.8]} 25.
Bf2 {[%clk 0:01:20.5]} 25... Bd5 {[%clk 0:01:39.4]} 26. Rc7 {[%clk 0:01:17.8]}
26... Qg5 {[%clk 0:01:23.3]} 27. Bf3 {[%clk 0:01:13.3]} 27... Bxf3 {[%clk
0:01:13.6]} 28. gxf3 {[%clk 0:01:14.2]} 28... Rf8 {[%clk 0:01:07.3]} 29. Rdd7
{[%clk 0:01:05.1]} 29... h5 {[%clk 0:01:02.4]} 30. Bc5 {[%clk 0:00:59.6]} 30...
Rf5 {[%clk 0:01:01]} 31. Be7 {[%clk 0:00:54.3]} 31... Qg2 {[%clk 0:00:58.1]} 32.
Bh4 {[%clk 0:00:47.2]} 32... Kh7 {[%clk 0:00:52.7]} 33. b3 {[%clk 0:00:42.7]}
33... Rd5 {[%clk 0:00:43]} 34. Rf7 {[%clk 0:00:41.9]} 34... Rf5 {[%clk
0:00:37.6]} 35. Rfd7 {[%clk 0:00:32.9]} 35... e5 {[%clk 0:00:36.7]} 36. Kb2
{[%clk 0:00:31.6]} 36... Rf8 {[%clk 0:00:32.4]} 37. Re7 {[%clk 0:00:31]} 37...
e4 {[%clk 0:00:30.3]} 38. Rxe4 {[%clk 0:00:05.1]} 38... Qxf3 {[%clk 0:00:29.6]}
39. Ree7 {[%clk 0:00:05.3]} 39... Qg2 {[%clk 0:00:29.2]} 40. Rcd7 {[%clk
0:00:01.8]} 40... f3 {[%clk 0:00:26.7]} 41. Be1 {[%clk 0:00:01.3]} 41... f2
{[%clk 0:00:23.9]} 42. Bxf2 {[%clk 0:00:01.4]} 42... Rxf2 {[%clk 0:00:22.9]} 0-1

[Event "*** SCC Grand Prix: Titled Tuesday Blitz"]
[Site "Chess.com"]
[Date "2020.09.08"]
[Round "10"]
[White "poummba"]
[Black "KyrgyzFighter"]
[Result "1-0"]
[WhiteElo "2535"]
[BlackElo "2371"]
[TimeControl "180+1"]
[EndTime "11:56:52 PDT"]
[Termination "poummba won by resignation"]

1. d4 {[%clk 0:03:00.9]} 1... d5 {[%clk 0:02:59.1]} 2. c4 {[%clk 0:03:01]} 2...
c6 {[%clk 0:02:59.4]} 3. Nf3 {[%clk 0:03:01.1]} 3... Nf6 {[%clk 0:02:59.9]} 4.
e3 {[%clk 0:02:58.5]} 4... a6 {[%clk 0:02:59.3]} 5. Bd3 {[%clk 0:02:55.5]} 5...
Bg4 {[%clk 0:02:54.8]} 6. O-O {[%clk 0:02:52.1]} 6... e6 {[%clk 0:02:53.8]} 7.
Nbd2 {[%clk 0:02:50.7]} 7... Nbd7 {[%clk 0:02:52.3]} 8. b3 {[%clk 0:02:51.2]}
8... Bd6 {[%clk 0:02:52.1]} 9. Bb2 {[%clk 0:02:51.6]} 9... O-O {[%clk
0:02:52.1]} 10. Re1 {[%clk 0:02:52.1]} 10... b5 {[%clk 0:02:51.8]} 11. Nf1
{[%clk 0:02:51.7]} 11... Ne4 {[%clk 0:02:50.4]} 12. Ng3 {[%clk 0:02:46.1]} 12...
f5 {[%clk 0:02:49.9]} 13. Be2 {[%clk 0:02:41.8]} 13... Qf6 {[%clk 0:02:28.8]}
14. Rc1 {[%clk 0:02:31.9]} 14... f4 {[%clk 0:02:05.6]} 15. exf4 {[%clk
0:02:10.7]} 15... Bxf4 {[%clk 0:02:04.8]} 16. Rc2 {[%clk 0:02:10.5]} 16... h5
{[%clk 0:01:52.4]} 17. Bd3 {[%clk 0:01:54.4]} 17... Ng5 {[%clk 0:01:42.7]} 18.
Be2 {[%clk 0:01:42.9]} 18... h4 {[%clk 0:01:29.9]} 19. Nxg5 {[%clk 0:01:40.9]}
19... Bxg3 {[%clk 0:01:11.7]} 20. Bxg4 {[%clk 0:01:00.3]} 20... Bxf2+ {[%clk
0:01:03.1]} 21. Rxf2 {[%clk 0:00:57.6]} 21... Qxf2+ {[%clk 0:01:02.1]} 22. Kh1
{[%clk 0:00:58.2]} 22... Rae8 {[%clk 0:00:47.5]} 23. Bxe6+ {[%clk 0:00:47.8]}
23... Rxe6 {[%clk 0:00:43.4]} 24. Nxe6 {[%clk 0:00:48.1]} 24... Re8 {[%clk
0:00:35.6]} 25. Qe2 {[%clk 0:00:41.2]} 25... Qf6 {[%clk 0:00:28.6]} 26. cxd5
{[%clk 0:00:32.6]} 26... cxd5 {[%clk 0:00:28.4]} 27. Ba3 {[%clk 0:00:27.1]}
27... a5 {[%clk 0:00:17.1]} 28. Bc5 {[%clk 0:00:21.5]} 28... b4 {[%clk
0:00:08.7]} 29. Qe3 {[%clk 0:00:18.1]} 29... Nxc5 {[%clk 0:00:07]} 30. dxc5
{[%clk 0:00:18]} 30... Re7 {[%clk 0:00:04.8]} 31. c6 {[%clk 0:00:11.2]} 31...
Kf7 {[%clk 0:00:04.8]} 32. c7 {[%clk 0:00:08.9]} 32... Re8 {[%clk 0:00:02.2]}
33. Ng5+ {[%clk 0:00:07.3]} 33... Kg6 {[%clk 0:00:02.3]} 34. Qxe8+ {[%clk
0:00:07.2]} 34... Kxg5 {[%clk 0:00:03.2]} 35. Qe7 {[%clk 0:00:07.5]} 35... Kg4
{[%clk 0:00:04.1]} 36. Qxf6 {[%clk 0:00:07]} 36... gxf6 {[%clk 0:00:05]} 37.
c8=Q+ {[%clk 0:00:07.3]} 37... f5 {[%clk 0:00:05.9]} 38. Qd7 {[%clk 0:00:07.2]}
38... Kg5 {[%clk 0:00:05.6]} 39. Qxd5 {[%clk 0:00:06.9]} 1-0

[Event "*** SCC Grand Prix: Titled Tuesday Blitz"]
[Site "Chess.com"]
[Date "2020.09.08"]
[Round "10"]
[White "eCztery"]
[Black "XiaoKangZhong"]
[Result "0-1"]
[WhiteElo "2302"]
[BlackElo "2432"]
[TimeControl "180+1"]
[EndTime "11:56:52 PDT"]
[Termination "XiaoKangZhong won on time"]

1. e4 {[%clk 0:02:59.6]} 1... c6 {[%clk 0:02:35.5]} 2. Nc3 {[%clk 0:02:58.9]}
2... d5 {[%clk 0:02:35.7]} 3. Nf3 {[%clk 0:02:59]} 3... dxe4 {[%clk 0:02:35.6]}
4. Nxe4 {[%clk 0:02:59.9]} 4... Nf6 {[%clk 0:02:36.1]} 5. Qe2 {[%clk 0:02:59.6]}
5... Nxe4 {[%clk 0:02:35.9]} 6. Qxe4 {[%clk 0:03:00.5]} 6... Qd5 {[%clk
0:02:36.6]} 7. Qh4 {[%clk 0:03:00.2]} 7... Qe6+ {[%clk 0:02:36.7]} 8. Be2 {[%clk
0:02:54.3]} 8... Qg4 {[%clk 0:02:36.6]} 9. Qxg4 {[%clk 0:02:50.6]} 9... Bxg4
{[%clk 0:02:37.5]} 10. d4 {[%clk 0:02:48.3]} 10... Nd7 {[%clk 0:02:31.7]} 11.
Be3 {[%clk 0:02:45.5]} 11... g6 {[%clk 0:02:25.9]} 12. O-O-O {[%clk 0:02:40.2]}
12... Nf6 {[%clk 0:02:24.2]} 13. h3 {[%clk 0:02:37.7]} 13... Bd7 {[%clk
0:02:23.4]} 14. Ne5 {[%clk 0:02:33.1]} 14... Bg7 {[%clk 0:02:17.6]} 15. Bg5
{[%clk 0:02:30.8]} 15... h6 {[%clk 0:02:14.5]} 16. Bxf6 {[%clk 0:02:22.5]} 16...
Bxf6 {[%clk 0:02:15.4]} 17. Bc4 {[%clk 0:02:23.1]} 17... e6 {[%clk 0:02:08.4]}
18. Rhe1 {[%clk 0:02:11.2]} 18... Ke7 {[%clk 0:02:03.4]} 19. f4 {[%clk
0:02:05.6]} 19... b5 {[%clk 0:01:57.6]} 20. Be2 {[%clk 0:01:47]} 20... Rhd8
{[%clk 0:01:56.3]} 21. Bf3 {[%clk 0:01:40.4]} 21... Rac8 {[%clk 0:01:55.8]} 22.
g4 {[%clk 0:01:37]} 22... Be8 {[%clk 0:01:54.9]} 23. c3 {[%clk 0:01:22.3]} 23...
a5 {[%clk 0:01:53.3]} 24. Kb1 {[%clk 0:01:21.7]} 24... c5 {[%clk 0:01:47]} 25.
d5 {[%clk 0:01:21.6]} 25... Bxe5 {[%clk 0:01:38.5]} 26. Rxe5 {[%clk 0:01:22.5]}
26... Rd6 {[%clk 0:01:30.4]} 27. Rde1 {[%clk 0:01:20.4]} 27... Bd7 {[%clk
0:01:26.1]} 28. f5 {[%clk 0:01:20.5]} 28... gxf5 {[%clk 0:01:22.5]} 29. gxf5
{[%clk 0:01:21.4]} 29... f6 {[%clk 0:01:21]} 30. fxe6 {[%clk 0:01:00.2]} 30...
fxe5 {[%clk 0:01:19.9]} 31. exd7 {[%clk 0:01:01.1]} 31... Rf8 {[%clk 0:01:07.8]}
32. Rxe5+ {[%clk 0:00:57.9]} 32... Kxd7 {[%clk 0:01:07.8]} 33. Bg4+ {[%clk
0:00:58.5]} 33... Kd8 {[%clk 0:01:06.8]} 34. a4 {[%clk 0:00:55.4]} 34... b4
{[%clk 0:01:01]} 35. cxb4 {[%clk 0:00:56.2]} 35... cxb4 {[%clk 0:01:00.1]} 36.
Ka2 {[%clk 0:00:55.4]} 36... Rf4 {[%clk 0:00:58.2]} 37. Be6 {[%clk 0:00:53.9]}
37... Kc7 {[%clk 0:00:52]} 38. Rh5 {[%clk 0:00:52.8]} 38... Rf6 {[%clk
0:00:51.8]} 39. Rh4 {[%clk 0:00:49.9]} 39... Rd8 {[%clk 0:00:49.4]} 40. Rc4+
{[%clk 0:00:49.4]} 40... Kd6 {[%clk 0:00:49.9]} 41. Rc6+ {[%clk 0:00:48.6]}
41... Ke5 {[%clk 0:00:50.3]} 42. Ra6 {[%clk 0:00:47.2]} 42... Rxd5 {[%clk
0:00:44.8]} 43. Bxd5 {[%clk 0:00:17.5]} 43... Rxa6 {[%clk 0:00:44.1]} 44. Bb7
{[%clk 0:00:18.4]} 44... Rd6 {[%clk 0:00:43.3]} 45. Kb3 {[%clk 0:00:17.6]} 45...
Kd4 {[%clk 0:00:43.8]} 46. Bc8 {[%clk 0:00:17.3]} 46... Rf6 {[%clk 0:00:40.5]}
47. Bg4 {[%clk 0:00:17]} 47... Rf4 {[%clk 0:00:40.2]} 48. Bc8 {[%clk 0:00:16.7]}
48... Rf3+ {[%clk 0:00:39.3]} 49. Kc2 {[%clk 0:00:16.5]} 49... b3+ {[%clk
0:00:37.9]} 50. Kd1 {[%clk 0:00:11.1]} 50... Rf2 {[%clk 0:00:37.9]} 51. Be6
{[%clk 0:00:04.9]} 51... Rxb2 {[%clk 0:00:37.2]} 52. h4 {[%clk 0:00:04.9]} 52...
Kc3 {[%clk 0:00:36.6]} 53. h5 {[%clk 0:00:04.6]} 53... Ra2 {[%clk 0:00:37]} 0-1

[Event "*** SCC Grand Prix: Titled Tuesday Blitz"]
[Site "Chess.com"]
[Date "2020.09.08"]
[Round "10"]
[White "anasta10"]
[Black "novocane"]
[Result "1-0"]
[WhiteElo "2440"]
[BlackElo "2292"]
[TimeControl "180+1"]
[EndTime "11:56:53 PDT"]
[Termination "anasta10 won by resignation"]

1. d4 {[%clk 0:03:00.9]} 1... Nf6 {[%clk 0:02:59.6]} 2. c4 {[%clk 0:02:58]} 2...
e6 {[%clk 0:02:59.6]} 3. Nc3 {[%clk 0:02:54.6]} 3... Bb4 {[%clk 0:02:59.4]} 4.
Nf3 {[%clk 0:02:54]} 4... c5 {[%clk 0:02:57.4]} 5. d5 {[%clk 0:02:53.2]} 5... d6
{[%clk 0:02:56.3]} 6. Bd2 {[%clk 0:02:48.1]} 6... O-O {[%clk 0:02:49.7]} 7. a3
{[%clk 0:02:46.1]} 7... Bxc3 {[%clk 0:02:48.2]} 8. Bxc3 {[%clk 0:02:46.1]} 8...
exd5 {[%clk 0:02:48.2]} 9. cxd5 {[%clk 0:02:46.2]} 9... Ne4 {[%clk 0:02:42.5]}
10. Rc1 {[%clk 0:02:44.6]} 10... Nd7 {[%clk 0:02:33.7]} 11. e3 {[%clk
0:02:44.1]} 11... Ndf6 {[%clk 0:02:25.5]} 12. Bd3 {[%clk 0:02:40.5]} 12... Nxc3
{[%clk 0:02:17.8]} 13. Rxc3 {[%clk 0:02:38]} 13... Bg4 {[%clk 0:02:16.8]} 14. h3
{[%clk 0:02:36.7]} 14... Bh5 {[%clk 0:02:08.6]} 15. O-O {[%clk 0:02:34.3]} 15...
Re8 {[%clk 0:02:07]} 16. Re1 {[%clk 0:02:23.8]} 16... Ne4 {[%clk 0:02:02.4]} 17.
Bxe4 {[%clk 0:02:22.2]} 17... Rxe4 {[%clk 0:02:02.1]} 18. g4 {[%clk 0:02:07.8]}
18... Bg6 {[%clk 0:01:06.2]} 19. Nd2 {[%clk 0:02:05.6]} 19... Re8 {[%clk
0:00:59.3]} 20. f4 {[%clk 0:02:02.3]} 20... f5 {[%clk 0:00:53.5]} 21. g5 {[%clk
0:02:00.2]} 21... Qe7 {[%clk 0:00:46.1]} 22. h4 {[%clk 0:01:52.7]} 22... Qf7
{[%clk 0:00:46]} 23. Nc4 {[%clk 0:01:40.8]} 23... Rad8 {[%clk 0:00:43.1]} 24.
Rb3 {[%clk 0:01:28.7]} 24... b6 {[%clk 0:00:43.1]} 25. a4 {[%clk 0:01:27.3]}
25... Re4 {[%clk 0:00:43.1]} 26. Qd3 {[%clk 0:01:19.1]} 26... Qd7 {[%clk
0:00:36.6]} 27. Rb5 {[%clk 0:01:01.9]} 27... Rde8 {[%clk 0:00:33]} 28. Kf2
{[%clk 0:00:56.6]} 28... Qe7 {[%clk 0:00:31.8]} 29. Rc1 {[%clk 0:00:25.3]} 29...
Bh5 {[%clk 0:00:30.2]} 30. a5 {[%clk 0:00:21.6]} 30... bxa5 {[%clk 0:00:28.3]}
31. Rxa5 {[%clk 0:00:21.7]} 31... Qc7 {[%clk 0:00:26.1]} 32. Ra3 {[%clk
0:00:21.8]} 32... Qb7 {[%clk 0:00:24.1]} 33. Rc2 {[%clk 0:00:20]} 33... Qf7
{[%clk 0:00:19.6]} 34. Nxd6 {[%clk 0:00:19.6]} 34... Qe7 {[%clk 0:00:15.9]} 35.
Nxe8 {[%clk 0:00:17.5]} 35... Bxe8 {[%clk 0:00:08.1]} 36. d6 {[%clk 0:00:17.8]}
36... Qd7 {[%clk 0:00:07.9]} 37. Rxc5 {[%clk 0:00:16.3]} 37... h6 {[%clk
0:00:06.9]} 38. Rc7 {[%clk 0:00:16.1]} 38... Qe6 {[%clk 0:00:06.5]} 39. Re7
{[%clk 0:00:15.5]} 1-0

[Event "*** SCC Grand Prix: Titled Tuesday Blitz"]
[Site "Chess.com"]
[Date "2020.09.08"]
[Round "10"]
[White "ViktoriyaTarasova"]
[Black "GothamChess"]
[Result "0-1"]
[WhiteElo "2270"]
[BlackElo "2573"]
[TimeControl "180+1"]
[EndTime "11:56:55 PDT"]
[Termination "GothamChess won on time"]

1. d4 {[%clk 0:03:00.9]} 1... e6 {[%clk 0:02:58.1]} 2. c4 {[%clk 0:03:00]} 2...
b6 {[%clk 0:02:58.2]} 3. Nc3 {[%clk 0:03:00]} 3... Bb7 {[%clk 0:02:58.4]} 4. e4
{[%clk 0:02:59]} 4... Bb4 {[%clk 0:02:58.3]} 5. f3 {[%clk 0:02:58]} 5... f5
{[%clk 0:02:58.2]} 6. exf5 {[%clk 0:02:53.1]} 6... Nh6 {[%clk 0:02:58.7]} 7.
fxe6 {[%clk 0:02:52.2]} 7... Nf5 {[%clk 0:02:58.9]} 8. exd7+ {[%clk 0:02:47.1]}
8... Nxd7 {[%clk 0:02:54.1]} 9. Ne2 {[%clk 0:01:56.7]} 9... O-O {[%clk 0:02:39]}
10. Bf4 {[%clk 0:01:47.8]} 10... g5 {[%clk 0:02:19.8]} 11. Bd2 {[%clk
0:01:44.7]} 11... Bxf3 {[%clk 0:02:11.6]} 12. gxf3 {[%clk 0:01:43.7]} 12... Nh4
{[%clk 0:02:11.3]} 13. Ng1 {[%clk 0:01:35.7]} 13... Re8+ {[%clk 0:02:03.3]} 14.
Kf2 {[%clk 0:01:35.2]} 14... Ne5 {[%clk 0:01:57.7]} 15. Be3 {[%clk 0:01:15.4]}
15... Ng4+ {[%clk 0:01:27.1]} 16. fxg4 {[%clk 0:01:10.8]} 16... Qf6+ {[%clk
0:01:23.4]} 17. Nf3 {[%clk 0:00:56.1]} 17... Rxe3 {[%clk 0:01:17.7]} 18. Kxe3
{[%clk 0:00:48.8]} 18... Rf8 {[%clk 0:00:27]} 19. Be2 {[%clk 0:00:30]} 19... c5
{[%clk 0:00:16.3]} 20. Nd5 {[%clk 0:00:24.5]} 20... Qe6+ {[%clk 0:00:16.3]} 21.
Kf2 {[%clk 0:00:24]} 21... cxd4 {[%clk 0:00:15.4]} 22. Qd3 {[%clk 0:00:18.2]}
22... Ng6 {[%clk 0:00:06.6]} 23. Rhf1 {[%clk 0:00:08.7]} 23... Qxg4 {[%clk
0:00:06.7]} 24. Rg1 {[%clk 0:00:04.7]} 24... Qh4+ {[%clk 0:00:05.1]} 25. Kg2
{[%clk 0:00:04.8]} 25... Qh6 {[%clk 0:00:02]} 26. Kh1 {[%clk 0:00:04.9]} 26...
Bd6 {[%clk 0:00:02]} 27. Rg2 {[%clk 0:00:03.3]} 27... Rxf3 {[%clk 0:00:02.2]}
28. Qxf3 {[%clk 0:00:02.6]} 28... Ne5 {[%clk 0:00:03.1]} 29. Qe4 {[%clk
0:00:02.2]} 29... Nf7 {[%clk 0:00:02.8]} 30. Rag1 {[%clk 0:00:02.8]} 30... Kf8
{[%clk 0:00:02.3]} 31. Qf5 {[%clk 0:00:02.7]} 31... d3 {[%clk 0:00:02.2]} 32.
Bxd3 {[%clk 0:00:02.5]} 32... Bc5 {[%clk 0:00:01.9]} 33. Qxh7 {[%clk 0:00:02.8]}
33... Qd6 {[%clk 0:00:01.7]} 34. Qg6 {[%clk 0:00:02.3]} 34... Qd7 {[%clk
0:00:01.3]} 35. Qf5 {[%clk 0:00:01.8]} 35... g4 {[%clk 0:00:02.2]} 36. Qxd7
{[%clk 0:00:01.4]} 36... Kg7 {[%clk 0:00:03.1]} 37. Qxa7 {[%clk 0:00:01.6]}
37... g3 {[%clk 0:00:04]} 38. Qxf7+ {[%clk 0:00:02]} 38... Kxf7 {[%clk
0:00:04.2]} 39. Rxg3 {[%clk 0:00:02.1]} 39... Ke6 {[%clk 0:00:05.1]} 40. Rf3
{[%clk 0:00:02.3]} 40... Ke5 {[%clk 0:00:06]} 0-1